[Event "FRA-ch Youth U12W 2019"]
[Site "Hyeres"]
[Date "2019.04.14"]
[Round "1.1"]
[White "Schippke, Manon"]
[Black "Costa Boschetto, Lisa"]
[Result "1-0"]
[ECO "C01"]
[WhiteElo "1646"]
[BlackElo "1161"]
[Annotator "NA"]
[PlyCount "83"]
[EventDate "2019.04.14"]
[EventType "swiss"]
[EventCountry "FRA"]
[SourceTitle "playchess.com"]
[Source "ChessBase"]
[SourceQuality "1"]
[TimeControl "5400+30"]

1. e4 {[%emt 0:00:00]} e5 {[%emt 0:00:00]} 2. Nf3 {[%emt 0:00:00]} Nf6 {[%emt 0:00:11]} 3. Nxe5 {[%emt 0:01:32]} d6 {[%emt 0:00:17]} 4. Nf3 {[%emt 0:00:38]} Nxe4 {[%emt 0:00:12]} 5. d3 {[%emt 0:01:16]} Nf6 {[%emt 0:00:12]} 6. d4 {[%emt 0:01:57]} d5 {[%emt 0:01:06]} 7. Nc3 {[%emt 0:04:34]} Bf5 {[%emt 0:01:47]} 8. Bd3 {[%emt 0:04:34]} Bg6 {[%emt 0:05:10]} 9. Ne5 {[%emt 0:04:10]} Bxd3 {[%emt 0:01:11]} 10. Qxd3 {[%emt 0:00:13]} Be7 {[%emt 0:00:56]} 11. Qb5+ {[%emt 0:01:44]} Nbd7 {[%emt 0:01:12]} 12. Nxd7 {[%emt 0:00:37]} Qxd7 {[%emt 0:00:42]} 13. Qxb7 {[%emt 0:00:57]} O-O {[%emt 0:02:28]} 14. O-O {[%emt 0:01:32]} Rfb8 {[%emt 0:02:25]} 15. Qa6 {[%emt 0:00:55]} Rb6 {[%emt 0:00:22]} 16. Qd3 {[%emt 0:01:26]} Re6 {[%emt 0:03:20]} 17. h3 {[%emt 0:06:31]} Re8 {[%emt 0:02:56]} 18. Be3 {[%emt 0:00:28]} Ne4 {[%emt 0:03:03]} 19. Nxe4 {[%emt 0:10:37]} Rxe4 {[%emt 0:01:52]} 20. c4 {[%emt 0:02:42]} c6 {[%emt 0:00:31]} 21. cxd5 {[%emt 0:03:22]} cxd5 {[%emt 0:00:36]} 22. Rac1 {[%emt 0:00:42]} f5 {[%emt 0:03:55]} 23. f3 {[%emt 0:11:55]} Rh4 {[%emt 0:00:58]} 24. Rc2 {[%emt 0:02:31]} f4 {[%emt 0:04:43]} 25. Bf2 {[%emt 0:00:28]} Rh6 {[%emt 0:00:34]} 26. Rfc1 {[%emt 0:01:14]} Bd6 {[%emt 0:06:09]} 27. Qb3 {[%emt 0:04:13]} Bb8 {[%emt 0:01:56]} 28. Rc5 {[%emt 0:01:52]} Rd6 {[%emt 0:02:43]} 29. Rb5 {[%emt 0:00:48]} Qd8 {[%emt 0:06:24]} 30. Rcc5 {[%emt 0:01:35]} a6 {[%emt 0:01:21]} 31. Rxd5 {[%emt 0:02:14]} Kf8 {[%emt 0:04:00]} 32. Rf5+ {[%emt 0:01:53]} Rf6 {[%emt 0:00:33]} 33. Rxf6+ {[%emt 0:00:13]} gxf6 {[%emt 0:00:18]} 34. Rb7 {[%emt 0:00:39]} Bc7 {[%emt 0:01:36]} 35. Qa3+ {[%emt 0:03:53]} Qd6 {[%emt 0:01:08]} 36. Rxc7 {[%emt 0:00:19]} Qxa3 {[%emt 0:00:17]} 37. bxa3 {[%emt 0:00:06]} h6 {[%emt 0:01:53]} 38. Rc6 {[%emt 0:00:25]} Kf7 {[%emt 0:00:24]} 39. Rxa6 {[%emt 0:00:42]} Re2 {[%emt 0:00:10]} 40. Bh4 {[%emt 0:00:55]} Re6 {[%emt 0:00:21]} 41. Rxe6 {[%emt 0:00:08]} Kxe6 {[%emt 0:00:15]} 42. a4 {[%emt 0:00:10]} 1-0

[Event "FRA-ch Youth U12W 2019"]
[Site "Hyeres"]
[Date "2019.04.14"]
[Round "1.3"]
[White "Berezovsky, Fiorina"]
[Black "Wendling, Eleonore"]
[Result "1-0"]
[ECO "C50"]
[WhiteElo "1604"]
[BlackElo "1160"]
[Annotator "NA"]
[PlyCount "47"]
[EventDate "2019.04.14"]
[EventType "swiss"]
[EventCountry "FRA"]
[SourceTitle "playchess.com"]
[Source "ChessBase"]
[SourceQuality "1"]
[TimeControl "5400+30"]

1. e4 {[%emt 0:00:20]} e5 {[%emt 0:00:00]} 2. Nf3 {[%emt 0:00:42]} Nc6 {[%emt 0:00:00]} 3. Bc4 {[%emt 0:00:32]} Be7 {[%emt 0:00:53]} 4. O-O {[%emt 0:00:54]} d6 {[%emt 0:00:39]} 5. d4 {[%emt 0:01:39]} Bg4 {[%emt 0:02:21]} 6. c3 {[%emt 0:04:50]} Qd7 {[%emt 0:04:22]} 7. d5 {[%emt 0:07:48]} Nd8 {[%emt 0:07:40]} 8. h3 {[%emt 0:01:24]} Bh5 {[%emt 0:01:56]} 9. Nxe5 {[%emt 0:14:39]} Bxd1 {[%emt 0:19:09]} 10. Nxd7 {[%emt 0:00:13]} Ba4 {[%emt 0:00:27]} 11. e5 {[%emt 0:07:26]} Bxd7 {[%emt 0:06:09]} 12. f4 {[%emt 0:01:35]} c6 {[%emt 0:13:03]} 13. Re1 {[%emt 0:04:06]} dxe5 {[%emt 0:07:19]} 14. fxe5 {[%emt 0:01:33]} b5 {[%emt 0:03:37]} 15. Bb3 {[%emt 0:01:20]} Nb7 {[%emt 0:01:16]} 16. d6 {[%emt 0:00:39]} Bd8 {[%emt 0:01:16]} 17. Rf1 {[%emt 0:00:54]} Bb6+ {[%emt 0:02:08]} 18. Kh1 {[%emt 0:00:22]} Nh6 {[%emt 0:00:43]} 19. Bxh6 {[%emt 0:00:29]} O-O-O {[%emt 0:02:47]} 20. Bxg7 {[%emt 0:01:32]} Rhg8 {[%emt 0:02:37]} 21. Bf6 {[%emt 0:00:32]} Rdf8 {[%emt 0:03:49]} 22. Be7 {[%emt 0:00:18]} Re8 {[%emt 0:00:07]} 23. Bxf7 {[%emt 0:00:42]} Rxe7 {[%emt 0:00:42]} 24. dxe7 {[%emt 0:00:32]} 1-0

[Event "FRA-ch Youth U12W 2019"]
[Site "Hyeres"]
[Date "2019.04.15"]
[Round "2.1"]
[White "Tran, Ky Lan"]
[Black "Schippke, Manon"]
[Result "0-1"]
[ECO "D20"]
[WhiteElo "1327"]
[BlackElo "1646"]
[Annotator "NA RC"]
[PlyCount "92"]
[EventDate "2019.04.14"]
[EventType "swiss"]
[EventCountry "FRA"]
[SourceTitle "playchess.com"]
[Source "ChessBase"]
[SourceQuality "1"]
[TimeControl "5400+30"]

1. d4 {[%emt 0:00:00]} d5 {[%emt 0:00:00]} 2. c4 {[%emt 0:00:00]} dxc4 {[%emt 0:00:05]} 3. e4 {[%emt 0:00:13]} c5 {[%emt 0:01:13]} 4. d5 {[%emt 0:00:35]} Nf6 {[%emt 0:01:26]} 5. Nc3 {[%emt 0:01:28]} b5 {[%emt 0:02:19]} 6. Bf4 {[%emt 0:00:54]} Qa5 {[%emt 0:01:37]} 7. f3 {[%emt 0:00:42]} Bb7 {[%emt 0:06:40]} 8. a4 {[%emt 0:02:01]} b4 {[%emt 0:12:01]} 9. Nb5 {[%emt 0:00:32]} Na6 {[%emt 0:00:42]} 10. Bxc4 {[%emt 0:02:08]} Qb6 {[%emt 0:17:09]} 11. Ne2 {[%emt 0:13:47]} g6 {[%emt 0:04:01]} 12. Ng3 {[%emt 0:02:33]} Qd8 {[%emt 0:03:53]} 13. O-O {[%emt 0:03:06]} Bg7 {[%emt 0:01:00]} 14. d6 {[%emt 0:02:06]} O-O {[%emt 0:03:09]} 15. Nc7 {[%emt 0:01:32]} Nxc7 {[%emt 0:01:33]} 16. dxc7 {[%emt 0:00:10]} Qc8 {[%emt 0:00:45]} 17. Bd5 {[%emt 0:14:54]} Nxd5 {[%emt 0:01:14]} 18. exd5 {[%emt 0:00:21]} Bxb2 {[%emt 0:00:49]} 19. Rb1 {[%emt 0:00:19]} Bd4+ {[%emt 0:00:49]} 20. Kh1 {[%emt 0:00:37]} Bxd5 {[%emt 0:00:44]} 21. Ne2 {[%emt 0:03:30]} e5 {[%emt 0:08:33]} 22. Bxe5 {[%emt 0:02:59]} Bxe5 {[%emt 0:00:58]} 23. Qxd5 {[%emt 0:00:17]} Qxc7 {[%emt 0:00:24]} 24. f4 {[%emt 0:00:35]} Bg7 {[%emt 0:01:39]} 25. Rfc1 {[%emt 0:00:33]} Qe7 {[%emt 0:00:36]} 26. Ng3 {[%emt 0:02:18]} Rfc8 {[%emt 0:02:21]} 27. f5 {[%emt 0:02:02]} Rab8 {[%emt 0:00:36]} 28. fxg6 {[%emt 0:00:50]} hxg6 {[%emt 0:00:21]} 29. Ne4 {[%emt 0:01:54]} Rd8 {[%emt 0:01:44]} 30. Qxc5 {[%emt 0:07:09]} Qxe4 {[%emt 0:00:13]} 31. Qxa7 {[%emt 0:00:29]} Ra8 {[%emt 0:00:43]} 32. Qb6 {[%emt 0:00:50]} Rd2 {[%emt 0:00:41]} 33. Qc6 {[%emt 0:01:41]} Qxc6 {[%emt 0:00:24]} 34. Rxc6 {[%emt 0:00:41]} Rxa4 {[%emt 0:00:08]} 35. Rc4 {[%emt 0:00:52]} Bc3 {[%emt 0:00:52]} 36. h3 {[%emt 0:00:53]} Raa2 {[%emt 0:00:22]} 37. Rg4 {[%emt 0:00:50]} Rab2 {[%emt 0:00:54]} 38. Ra1 {[%emt 0:01:14]} b3 {[%emt 0:01:14]} 39. Ra8+ {[%emt 0:01:59]} Kg7 {[%emt 0:00:15]} 40. Ra3 {[%emt 0:00:53]} Rd1+ {[%emt 0:00:23]} 41. Kh2 {[%emt 0:00:44]} Be5+ {[%emt 0:00:08]} 42. Rg3 {[%emt 0:00:29]} Rd3 {[%emt 0:00:20]} 43. Ra1 {[%emt 0:29:50]} Bxg3+ 44. Kg1 Rdd2 45. Kf1 Rxg2 46. Ra3 Rbf2+ 0-1

[Event "FRA-ch Youth U12W 2019"]
[Site "Hyeres"]
[Date "2019.04.15"]
[Round "2.2"]
[White "Bousmaha, Leila"]
[Black "Sumarriva Paulin, Jade"]
[Result "1-0"]
[ECO "C47"]
[WhiteElo "1616"]
[BlackElo "1312"]
[Annotator "NA RC"]
[PlyCount "57"]
[EventDate "2019.04.14"]
[EventType "swiss"]
[EventCountry "FRA"]
[SourceTitle "playchess.com"]
[Source "ChessBase"]
[SourceQuality "1"]
[TimeControl "5400+30"]

1. e4 {[%emt 0:00:00]} e5 {[%emt 0:00:00]} 2. Nf3 {[%emt 0:00:00]} Nc6 {[%emt 0:00:00]} 3. Nc3 {[%emt 0:00:00]} Nf6 {[%emt 0:00:00]} 4. d4 {[%emt 0:00:00]} exd4 {[%emt 0:00:09]} 5. Nxd4 {[%emt 0:00:00]} Bc5 {[%emt 0:00:21]} 6. Be3 {[%emt 0:00:32]} Bb4 {[%emt 0:04:44]} 7. Nxc6 {[%emt 0:01:41]} bxc6 {[%emt 0:00:20]} 8. Bg5 {[%emt 0:08:36]} Bxc3+ {[%emt 0:06:20]} 9. bxc3 {[%emt 0:00:08]} d6 {[%emt 0:00:28]} 10. Qd4 {[%emt 0:04:12]} Qe7 {[%emt 0:16:03]} 11. Bd3 {[%emt 0:01:53]} Qe6 {[%emt 0:07:26]} 12. O-O {[%emt 0:01:43]} c5 {[%emt 0:09:23]} 13. Qe3 {[%emt 0:04:27]} O-O {[%emt 0:04:25]} 14. f4 {[%emt 0:03:17]} Bb7 {[%emt 0:07:14]} 15. Bxf6 {[%emt 0:06:44]} Qxf6 {[%emt 0:00:28]} 16. e5 {[%emt 0:00:40]} Qe6 {[%emt 0:01:30]} 17. Rae1 {[%emt 0:01:33]} Rfe8 {[%emt 0:01:21]} 18. Qg3 {[%emt 0:03:17]} Qxa2 {[%emt 0:07:44]} 19. c4 {[%emt 0:01:21]} Qa4 {[%emt 0:02:27]} 20. Qh3 {[%emt 0:01:37]} h6 {[%emt 0:03:59]} 21. Qf5 {[%emt 0:01:27]} g6 {[%emt 0:07:03]} 22. Qf6 {[%emt 0:02:40]} Re6 {[%emt 0:00:53]} 23. Qh4 {[%emt 0:00:09]} Kg7 {[%emt 0:01:14]} 24. f5 {[%emt 0:01:06]} Ree8 {[%emt 0:01:56]} 25. Qf6+ {[%emt 0:00:23]} Kg8 {[%emt 0:01:51]} 26. fxg6 {[%emt 0:00:06]} Qd7 {[%emt 0:09:06]} 27. gxf7+ {[%emt 0:00:09]} Kf8 {[%emt 0:00:42]} 28. fxe8=Q+ {[%emt 0:00:25]} Kxe8 {[%emt 0:00:18]} 29. Qf8# {[%emt 0:00:05]} 1-0

[Event "FRA-ch Youth U12W 2019"]
[Site "Hyeres"]
[Date "2019.04.15"]
[Round "2.3"]
[White "Bellahcene, Jenna"]
[Black "Berezovsky, Fiorina"]
[Result "0-1"]
[ECO "B22"]
[WhiteElo "1305"]
[BlackElo "1604"]
[Annotator "NA RC"]
[PlyCount "174"]
[EventDate "2019.04.14"]
[EventType "swiss"]
[EventCountry "FRA"]
[SourceTitle "playchess.com"]
[Source "ChessBase"]
[SourceQuality "1"]
[TimeControl "5400+30"]

1. e4 {[%emt 0:00:00]} c5 {[%emt 0:00:00]} 2. c3 {[%emt 0:00:00]} d5 {[%emt 0:00:00]} 3. exd5 {[%emt 0:00:00]} Qxd5 {[%emt 0:00:20]} 4. d4 {[%emt 1:32:00]} e6 {[%emt 0:00:37]} 5. Nf3 {[%emt 0:00:53]} Nc6 {[%emt 0:00:52]} 6. Be2 {[%emt 0:00:59]} Nf6 {[%emt 0:00:45]} 7. O-O {[%emt 0:00:38]} cxd4 {[%emt 0:01:08]} 8. cxd4 {[%emt 0:00:19]} Be7 {[%emt 0:02:13]} 9. Nc3 {[%emt 0:01:32]} Qd8 {[%emt 0:01:24]} 10. Be3 {[%emt 1:30:25]} O-O {[%emt 0:01:12]} 11. Qd2 {[%emt 0:00:56]} b6 {[%emt 0:02:15]} 12. Rfd1 {[%emt 1:27:36]} Bb7 {[%emt 0:01:18]} 13. Rac1 {[%emt 0:02:25]} Nb4 {[%emt 0:02:12]} 14. Ne5 {[%emt 0:02:52]} Nbd5 {[%emt 0:01:35]} 15. Bg5 {[%emt 0:04:54]} Rc8 {[%emt 0:11:42]} 16. Bf3 {[%emt 0:12:14]} a6 {[%emt 0:32:48]} 17. a3 {[%emt 0:06:16]} b5 {[%emt 0:02:18]} 18. b4 {[%emt 0:06:21]} a5 {[%emt 0:19:21]} 19. Na2 {[%emt 0:09:06]} axb4 {[%emt 0:02:25]} 20. Nxb4 {[%emt 0:00:41]} Qd6 {[%emt 0:01:10]} 21. Ned3 {[%emt 0:46:06]} Nd7 {[%emt 0:06:31]} 22. Bxe7 {[%emt 0:00:57]} Qxe7 {[%emt 0:00:04]} 23. Nxd5 {[%emt 0:00:32]} Bxd5 {[%emt 0:00:18]} 24. Bxd5 {[%emt 0:00:12]} exd5 {[%emt 0:00:02]} 25. Nb4 {[%emt 0:00:54]} Nb6 {[%emt 0:00:37]} 26. Qd3 {[%emt 0:04:08]} Qd7 {[%emt 0:09:53]} 27. Qf3 {[%emt 0:02:50]} Rc4 {[%emt 0:01:25]} 28. Qd3 {[%emt 0:05:15]} Rfc8 {[%emt 0:00:20]} 29. Rxc4 {[%emt 0:00:29]} bxc4 {[%emt 0:01:25]} 30. Qc2 {[%emt 0:01:01]} Re8 {[%emt 0:00:22]} 31. Kf1 {[%emt 0:03:41]} Qe6 {[%emt 0:01:23]} 32. Na2 {[%emt 0:01:49]} Qh6 {[%emt 0:01:05]} 33. h3 {[%emt 0:01:22]} Qf4 {[%emt 0:05:54]} 34. Kg1 {[%emt 0:00:34]} Qf6 {[%emt 0:01:15]} 35. Nc3 {[%emt 0:01:05]} Qd6 {[%emt 0:01:27]} 36. Nb5 {[%emt 0:01:20]} Qc6 {[%emt 0:00:25]} 37. Nc3 {[%emt 0:20:15]} Nd7 {[%emt 0:01:06]} 38. a4 {[%emt 0:00:30]} Nf6 {[%emt 0:00:12]} 39. Ra1 {[%emt 0:01:43]} Ne4 {[%emt 0:00:27]} 40. Ne2 {[%emt 0:03:59]} Qf6 {[%emt 0:00:36]} 41. Rf1 {[%emt 0:00:50]} c3 {[%emt 0:00:53]} 42. Nxc3 {[%emt 0:01:35]} Qc6 {[%emt 0:02:44]} 43. Rc1 {[%emt 0:03:34]} Rc8 {[%emt 0:00:04]} 44. Nxe4 {[%emt 0:02:25]} Qxc2 {[%emt 0:00:11]} 45. Rxc2 {[%emt 0:00:07]} Rxc2 {[%emt 0:00:04]} 46. Nc5 {[%emt 0:00:11]} Rc4 {[%emt 0:00:12]} 47. a5 {[%emt 0:01:33]} Rxd4 {[%emt 0:00:08]} 48. Kf1 {[%emt 0:00:28]} Rd1+ {[%emt 0:03:17]} 49. Ke2 {[%emt 0:00:10]} Ra1 {[%emt 0:00:04]} 50. a6 {[%emt 0:00:46]} Ra5 {[%emt 0:00:06]} 51. Nd3 {[%emt 0:00:16]} Rxa6 {[%emt 0:00:04]} 52. Ke3 {[%emt 0:00:03]} Kf8 {[%emt 0:00:10]} 53. Kd4 {[%emt 0:00:05]} Rd6 {[%emt 0:00:23]} 54. Nf4 {[%emt 0:00:11]} Ke7 {[%emt 0:00:08]} 55. h4 {[%emt 0:00:20]} h6 {[%emt 0:00:12]} 56. Nd3 {[%emt 0:00:19]} g5 {[%emt 0:00:32]} 57. hxg5 {[%emt 0:00:27]} hxg5 {[%emt 0:00:04]} 58. f4 {[%emt 0:00:58]} f6 {[%emt 0:01:27]} 59. fxg5 {[%emt 0:00:39]} fxg5 {[%emt 0:02:49]} 60. g3 {[%emt 0:01:14]} Kf6 {[%emt 0:00:48]} 61. g4 {[%emt 0:01:06]} Ke7 {[%emt 0:01:46]} 62. Ne5 {[%emt 0:01:52]} Ke6 {[%emt 0:00:59]} 63. Nf3 {[%emt 0:00:50]} Kf6 {[%emt 0:00:08]} 64. Ne5 {[%emt 0:00:11]} Re6 {[%emt 0:00:28]} 65. Nd7+ {[%emt 0:01:22]} Ke7 {[%emt 0:00:09]} 66. Ne5 {[%emt 0:00:22]} Kd6 {[%emt 0:01:25]} 67. Nf7+ {[%emt 0:00:23]} Ke7 {[%emt 0:00:23]} 68. Nxg5 {[%emt 0:00:19]} Rg6 {[%emt 0:00:32]} 69. Nf3 {[%emt 0:07:13]} Kd6 {[%emt 0:00:32]} 70. Ne5 {[%emt 0:07:06]} Rg7 {[%emt 0:00:29]} 71. g5 {[%emt 0:00:00]} Re7 {[%emt 0:00:17]} 72. Nf3 {[%emt 0:00:00]} Re4+ {[%emt 0:00:24]} 73. Kd3 {[%emt 0:00:00]} Rg4 {[%emt 0:00:24]} 74. Ke3 {[%emt 0:00:00]} Kc5 {[%emt 0:01:31]} 75. Kd2 {[%emt 0:00:00]} d4 {[%emt 0:00:27]} 76. Ne5 {[%emt 0:00:00]} Rxg5 {[%emt 0:00:23]} 77. Nd3+ {[%emt 0:00:00]} Kc4 {[%emt 0:01:39]} 78. Nb2+ {[%emt 0:00:00]} Kb3 {[%emt 0:00:23]} 79. Nd3 {[%emt 0:00:00]} Rg2+ {[%emt 0:00:07]} 80. Kd1 {[%emt 0:00:21]} Kc3 {[%emt 0:00:23]} 81. Nf4 {[%emt 0:00:44]} Rh2 {[%emt 0:00:39]} 82. Nd5+ {[%emt 0:00:31]} Kc4 {[%emt 0:02:16]} 83. Nf4 {[%emt 0:00:12]} d3 {[%emt 0:00:29]} 84. Ke1 {[%emt 0:01:05]} Kd4 {[%emt 0:00:21]} 85. Kd1 {[%emt 0:00:29]} Ke4 {[%emt 0:00:22]} 86. Ne6 {[%emt 0:00:54]} Ke3 {[%emt 0:00:15]} 87. Kc1 {[%emt 0:00:45]} d2+ {[%emt 0:02:40]} 0-1

[Event "FRA-ch Youth U12W 2019"]
[Site "Hyeres"]
[Date "2019.04.15"]
[Round "3.1"]
[White "Schippke, Manon"]
[Black "Forges-Boulanger, Julie"]
[Result "1-0"]
[ECO "B10"]
[WhiteElo "1646"]
[BlackElo "1371"]
[Annotator "NA"]
[PlyCount "113"]
[EventDate "2019.04.14"]
[EventType "swiss"]
[EventCountry "FRA"]
[SourceTitle "playchess.com"]
[Source "ChessBase"]
[SourceQuality "1"]
[TimeControl "5400+30"]

1. e4 {[%emt 0:00:00]} c6 {[%emt 0:00:00]} 2. b3 {[%emt 0:00:00]} d5 {[%emt 0:00:15]} 3. Bb2 {[%emt 0:01:17]} dxe4 {[%emt 0:02:01]} 4. Nc3 {[%emt 0:00:25]} Bf5 {[%emt 0:00:44]} 5. g4 {[%emt 0:04:55]} Bg6 {[%emt 0:02:59]} 6. Bg2 {[%emt 0:00:46]} Nf6 {[%emt 0:01:26]} 7. Qe2 {[%emt 0:05:37]} e6 {[%emt 0:13:32]} 8. Nxe4 {[%emt 0:05:02]} Nxe4 {[%emt 0:02:42]} 9. Bxe4 {[%emt 0:00:27]} Bxe4 {[%emt 0:00:23]} 10. Qxe4 {[%emt 0:00:14]} Qd5 {[%emt 0:01:40]} 11. Qxd5 {[%emt 0:00:19]} cxd5 {[%emt 0:03:55]} 12. f4 {[%emt 0:04:10]} f6 {[%emt 0:06:57]} 13. O-O-O {[%emt 0:05:00]} Nd7 {[%emt 0:13:36]} 14. Re1 {[%emt 0:05:02]} Kf7 {[%emt 0:02:42]} 15. Ne2 {[%emt 0:04:57]} Re8 {[%emt 0:03:02]} 16. Rhf1 {[%emt 0:03:29]} Rg8 {[%emt 0:02:35]} 17. Nd4 {[%emt 0:03:40]} Bc5 {[%emt 0:02:39]} 18. Nb5 {[%emt 0:04:47]} a6 {[%emt 0:04:05]} 19. Nc7 {[%emt 0:01:06]} Re7 {[%emt 0:04:42]} 20. f5 {[%emt 0:00:20]} e5 {[%emt 0:07:38]} 21. Nxd5 {[%emt 0:00:28]} Ree8 {[%emt 0:01:10]} 22. Nc7 {[%emt 0:02:33]} Rc8 {[%emt 0:02:22]} 23. Ne6 {[%emt 0:00:20]} Bb6 {[%emt 0:02:04]} 24. d4 {[%emt 0:01:44]} exd4 {[%emt 0:01:59]} 25. Bxd4 {[%emt 0:01:09]} Bxd4 {[%emt 0:01:05]} 26. Nxd4 {[%emt 0:00:24]} Ne5 {[%emt 0:02:44]} 27. Re4 {[%emt 0:00:48]} Rc3 {[%emt 0:02:15]} 28. Kb2 {[%emt 0:02:02]} Rgc8 {[%emt 0:00:49]} 29. Rf2 {[%emt 0:04:26]} R3c7 {[%emt 0:01:06]} 30. Ref4 {[%emt 0:01:58]} h6 {[%emt 0:01:12]} 31. Nf3 {[%emt 0:03:11]} Nxf3 {[%emt 0:01:09]} 32. R4xf3 {[%emt 0:00:11]} Rd8 {[%emt 0:00:25]} 33. Rd3 {[%emt 0:01:57]} Rxd3 {[%emt 0:01:57]} 34. cxd3 {[%emt 0:00:07]} Ke7 {[%emt 0:00:54]} 35. Rc2 {[%emt 0:01:03]} Rd7 {[%emt 0:00:33]} 36. Kc3 {[%emt 0:01:03]} Rd6 {[%emt 0:02:58]} 37. d4 {[%emt 0:01:04]} b5 {[%emt 0:00:45]} 38. Rd2 {[%emt 0:00:36]} Rd5 {[%emt 0:01:09]} 39. Kb4 {[%emt 0:00:50]} Kd7 {[%emt 0:00:39]} 40. Ka5 {[%emt 0:00:23]} Rd6 {[%emt 0:00:27]} 41. d5 {[%emt 0:01:57]} Kd8 {[%emt 0:01:01]} 42. Kb4 {[%emt 0:00:26]} Ke8 {[%emt 0:02:12]} 43. Kc5 {[%emt 0:00:24]} Kd7 {[%emt 0:00:22]} 44. Re2 {[%emt 0:00:23]} a5 {[%emt 0:00:57]} 45. Re6 {[%emt 0:00:16]} Rxe6 {[%emt 0:00:25]} 46. dxe6+ {[%emt 0:00:06]} Kc7 {[%emt 0:00:39]} 47. Kxb5 {[%emt 0:00:05]} g6 {[%emt 0:00:21]} 48. fxg6 {[%emt 0:00:17]} f5 {[%emt 0:00:12]} 49. g7 {[%emt 0:00:18]} f4 {[%emt 0:01:00]} 50. g8=Q {[%emt 0:00:09]} f3 {[%emt 0:00:11]} 51. Qf7+ {[%emt 0:00:10]} Kd6 {[%emt 0:00:17]} 52. Qxf3 {[%emt 0:00:16]} a4 {[%emt 0:00:14]} 53. Qe4 {[%emt 0:00:32]} axb3 {[%emt 0:00:15]} 54. axb3 {[%emt 0:00:09]} h5 {[%emt 0:00:08]} 55. e7 {[%emt 0:00:15]} hxg4 {[%emt 0:00:22]} 56. e8=Q {[%emt 0:00:26]} g3 {[%emt 0:00:19]} 57. Q4e5# {[%emt 0:00:06] Kd5 [%clk 0:00:00]} 1-0

[Event "FRA-ch Youth U12W 2019"]
[Site "Hyeres"]
[Date "2019.04.15"]
[Round "3.2"]
[White "Micheli, Elora"]
[Black "Bousmaha, Leila"]
[Result "1-0"]
[ECO "C45"]
[WhiteElo "1359"]
[BlackElo "1616"]
[Annotator "NA"]
[PlyCount "72"]
[EventDate "2019.04.14"]
[EventType "swiss"]
[EventCountry "FRA"]
[SourceTitle "playchess.com"]
[Source "ChessBase"]
[SourceQuality "1"]
[TimeControl "5400+30"]

1. e4 {[%emt 0:00:00]} e5 {[%emt 0:00:00]} 2. Nf3 {[%emt 0:00:12]} Nc6 {[%emt 0:00:00]} 3. d4 {[%emt 0:00:10]} exd4 {[%emt 0:00:00]} 4. Nxd4 {[%emt 0:00:38]} Qf6 {[%emt 0:00:03]} 5. Be3 {[%emt 0:00:47]} Bc5 {[%emt 0:00:04]} 6. c3 {[%emt 0:00:17]} Nge7 {[%emt 0:00:42]} 7. g3 {[%emt 0:00:53]} d6 {[%emt 0:03:57]} 8. Bg2 {[%emt 0:02:34]} Bd7 {[%emt 0:01:15]} 9. O-O {[%emt 0:06:24]} h5 {[%emt 0:03:45]} 10. b4 {[%emt 0:01:38]} Bb6 {[%emt 0:00:23]} 11. h4 {[%emt 0:01:08]} Ne5 {[%emt 0:04:06]} 12. a4 {[%emt 0:06:15]} c5 {[%emt 0:07:18]} 13. Nf3 {[%emt 0:09:16]} Bg4 {[%emt 0:03:18]} 14. Nbd2 {[%emt 0:01:16]} a6 {[%emt 0:07:19]} 15. a5 {[%emt 0:01:49]} Ba7 {[%emt 0:00:09]} 16. Qa4+ {[%emt 0:01:36]} Kf8 {[%emt 0:05:06]} 17. Nxe5 {[%emt 0:03:32]} Qxe5 {[%emt 0:01:22]} 18. Rac1 {[%emt 0:01:45]} Qe6 {[%emt 0:04:00]} 19. Kh2 {[%emt 0:01:45]} Qg6 {[%emt 0:05:19]} 20. e5 {[%emt 0:08:50]} Rb8 {[%emt 0:09:12]} 21. exd6 {[%emt 0:00:17]} Qxd6 {[%emt 0:00:12]} 22. Bf4 {[%emt 0:00:08]} Qd8 {[%emt 0:00:46]} 23. Bxb8 {[%emt 0:00:26]} Bxb8 {[%emt 0:00:29]} 24. Nf3 {[%emt 0:02:05]} Nf5 {[%emt 0:09:42]} 25. Kg1 {[%emt 0:08:17]} Bxf3 {[%emt 0:01:03]} 26. Bxf3 {[%emt 0:00:24]} Nxh4 {[%emt 0:00:52]} 27. gxh4 {[%emt 0:06:37]} Qxh4 {[%emt 0:00:23]} 28. Rfe1 {[%emt 0:01:58]} Bh2+ {[%emt 0:01:00]} 29. Kf1 {[%emt 0:00:26]} Qh3+ {[%emt 0:01:19]} 30. Bg2 {[%emt 0:02:27]} Qd3+ {[%emt 0:00:09]} 31. Re2 {[%emt 0:00:25]} g5 {[%emt 0:00:14]} 32. Qe8+ {[%emt 0:00:48]} Kg7 {[%emt 0:00:07]} 33. Qe3 {[%emt 0:00:33]} Qg6 {[%emt 0:11:48]} 34. Qxc5 {[%emt 0:01:32]} Rd8 {[%emt 0:01:16]} 35. Qe7 {[%emt 0:04:03]} Rd3 {[%emt 0:02:36]} 36. Be4 {[%emt 0:00:47]} Qh6 {[%emt 0:02:06]} 1-0